[Event "Titled Tuesday Blitz February 14 Early 2023"]
[White "Papp, Petra"]
[Black "Ardila, Oscar Humberto"]
[WhiteFideId "739049"]
[BlackFideId "4404742"]
[WhiteElo "2343"]
[BlackElo "1982"]
[Result "0-1"]
[Round "06"]
[TimeControl "180+2"]
[Date "2023.02.15"]
[WhiteClock "0:00:01"]
[BlackClock "0:00:50"]

1. e4 {[%clk 0:01:56]}  e5 {[%clk 0:02:58]} 2. Nf3 {[%clk 0:01:55]}  Nf6 {[%clk 0:02:58]} 3. Nxe5 {[%clk 0:01:55]}  d6 {[%clk 0:02:58]} 4. Nf3 {[%clk 0:01:55]}  Nxe4 {[%clk 0:02:58]} 5. Nc3 {[%clk 0:01:55]}  Nxc3 {[%clk 0:02:57]} 6. dxc3 {[%clk 0:01:56]}  Be7 {[%clk 0:02:58]} 7. Be3 {[%clk 0:01:56]}  O-O {[%clk 0:02:58]} 8. Bd3 {[%clk 0:01:56]}  Nd7 {[%clk 0:02:59]} 9. Qe2 {[%clk 0:01:56]}  Nf6 {[%clk 0:02:59]} 10. O-O-O {[%clk 0:01:56]}  c6 {[%clk 0:02:55]} 11. h4 {[%clk 0:01:56]}  b5 {[%clk 0:02:54]} 12. h5 {[%clk 0:01:49]}  Qa5 {[%clk 0:02:52]} 13. Kb1 {[%clk 0:01:44]}  Be6 {[%clk 0:02:51]} 14. a3 {[%clk 0:01:37]}  Nd5 {[%clk 0:02:48]} 15. Ng5 {[%clk 0:01:19]}  Nxc3+ {[%clk 0:02:30]} 16. bxc3 {[%clk 0:01:12]}  Qxc3 {[%clk 0:02:30]} 17. Bd4 {[%clk 0:01:00]}  Qxa3 {[%clk 0:02:26]} 18. Nxe6 {[%clk 0:00:50]}  Qb4+ {[%clk 0:02:25]} 19. Bb2 {[%clk 0:00:48]}  Bf6 {[%clk 0:02:24]} 20. c3 {[%clk 0:00:40]}  Bxc3 {[%clk 0:02:23]} 21. Nxf8 {[%clk 0:00:23]}  Rxf8 {[%clk 0:02:19]} 22. Bxh7+ {[%clk 0:00:21]}  Kh8 {[%clk 0:02:10]} 23. Bd3 {[%clk 0:00:20]}  a5 {[%clk 0:02:04]} 24. h6 {[%clk 0:00:16]}  g6 {[%clk 0:02:02]} 25. Qc2 {[%clk 0:00:15]}  Bd4 {[%clk 0:01:57]} 26. Ka2 {[%clk 0:00:13]}  c5 {[%clk 0:01:48]} 27. Bxd4+ {[%clk 0:00:13]}  cxd4 {[%clk 0:01:47]} 28. Qb2 {[%clk 0:00:12]}  Qc5 {[%clk 0:01:47]} 29. Bb1 {[%clk 0:00:10]}  f6 {[%clk 0:01:27]} 30. Qxd4 {[%clk 0:00:09]}  Qg5 {[%clk 0:01:15]} 31. g3 {[%clk 0:00:05]}  b4 {[%clk 0:01:14]} 32. h7 {[%clk 0:00:05]}  Qb5 {[%clk 0:01:11]} 33. Bc2 {[%clk 0:00:04]}  a4 {[%clk 0:01:10]} 34. Bxa4 {[%clk 0:00:03]}  Qxa4+ {[%clk 0:01:10]} 35. Kb1 {[%clk 0:00:04]}  b3 {[%clk 0:01:06]} 36. Qb2 {[%clk 0:00:03]}  Qe4+ {[%clk 0:01:05]} 37. Kc1 {[%clk 0:00:02]}  Rc8+ {[%clk 0:01:05]} 38. Kd2 {[%clk 0:00:01]}  Rc2+ {[%clk 0:01:04]} 39. Qxc2 {[%clk 0:00:02]}  Qxc2+ {[%clk 0:00:59]} 40. Ke3 {[%clk 0:00:01]}  b2 {[%clk 0:00:55]} 41. Rxd6 {[%clk 0:00:01]}  Qc5+ {[%clk 0:00:55]} 42. Rd4 {[%clk 0:00:01]}  Qc1+ {[%clk 0:00:52]} 43. Ke4 {[%clk 0:00:02]}  Qxh1+ {[%clk 0:00:50]} 44. Kf4 {[%clk 0:00:01]}  b1=Q {[%clk 0:00:50]} 0-1


[Site "https://www.chess.com"]

[Event "Titled Tuesday Blitz February 14 Early 2023"]
[White "Mesa Cruz, Juan Carlos"]
[Black "Smith, Garrett L"]
[WhiteFideId "6423400"]
[BlackFideId "2024829"]
[WhiteElo "2122"]
[BlackElo "2047"]
[Result "0-1"]
[Round "06"]
[TimeControl "180+2"]
[Date "2023.02.15"]
[WhiteClock "0:00:01"]
[BlackClock "0:00:17"]

1. e4 {[%clk 0:03:00]}  c5 {[%clk 0:02:59]} 2. Nf3 {[%clk 0:02:57]}  Nc6 {[%clk 0:02:59]} 3. d4 {[%clk 0:02:56]}  cxd4 {[%clk 0:03:00]} 4. Nxd4 {[%clk 0:02:56]}  e5 {[%clk 0:03:01]} 5. Nb5 {[%clk 0:02:56]}  d6 {[%clk 0:03:01]} 6. N1c3 {[%clk 0:02:54]}  a6 {[%clk 0:03:01]} 7. Na3 {[%clk 0:02:54]}  Be7 {[%clk 0:03:01]} 8. Nc4 {[%clk 0:02:53]}  Nf6 {[%clk 0:03:00]} 9. a4 {[%clk 0:02:51]}  O-O {[%clk 0:02:51]} 10. Be3 {[%clk 0:02:46]}  Be6 {[%clk 0:02:44]} 11. Bb6 {[%clk 0:02:42]}  Qd7 {[%clk 0:02:43]} 12. Ne3 {[%clk 0:02:41]}  Bd8 {[%clk 0:02:37]} 13. Bxd8 {[%clk 0:02:29]}  Rfxd8 {[%clk 0:02:36]} 14. Qf3 {[%clk 0:02:22]}  Nd4 {[%clk 0:02:35]} 15. Qg3 {[%clk 0:02:10]}  Rac8 {[%clk 0:02:31]} 16. Bd3 {[%clk 0:02:09]}  b5 {[%clk 0:02:16]} 17. axb5 {[%clk 0:02:05]}  axb5 {[%clk 0:02:17]} 18. O-O {[%clk 0:02:04]}  b4 {[%clk 0:02:11]} 19. Ncd5 {[%clk 0:02:03]}  Bxd5 {[%clk 0:02:07]} 20. Nxd5 {[%clk 0:01:37]}  Nxd5 {[%clk 0:02:06]} 21. exd5 {[%clk 0:01:38]}  Nxc2 {[%clk 0:01:56]} 22. Ra6 {[%clk 0:00:43]}  Nd4 {[%clk 0:01:47]} 23. h4 {[%clk 0:00:34]}  Rc5 {[%clk 0:01:30]} 24. Rfa1 {[%clk 0:00:23]}  Rdc8 {[%clk 0:01:08]} 25. Ra7 {[%clk 0:00:09]}  R5c7 {[%clk 0:01:06]} 26. R7a6 {[%clk 0:00:05]}  h6 {[%clk 0:00:55]} 27. Re1 {[%clk 0:00:02]}  f5 {[%clk 0:00:42]} 28. f4 {[%clk 0:00:01]}  e4 {[%clk 0:00:39]} 29. Bxe4 {[%clk 0:00:02]}  fxe4 {[%clk 0:00:38]} 30. Rxe4 {[%clk 0:00:02]}  Rc1+ {[%clk 0:00:36]} 31. Kh2 {[%clk 0:00:02]}  Nf5 {[%clk 0:00:35]} 32. Qg4 {[%clk 0:00:03]}  Rf8 {[%clk 0:00:27]} 33. Re6 {[%clk 0:00:03]}  Qb5 {[%clk 0:00:20]} 34. Ra7 {[%clk 0:00:01]}  Qf1 {[%clk 0:00:17]} 0-1


[Site "https://www.chess.com"]

[Event "Titled Tuesday Blitz February 14 Early 2023"]
[White "Korpics, Zsolt"]
[Black "Boder, Jan"]
[WhiteFideId "705241"]
[BlackFideId "16243226"]
[WhiteElo "2300"]
[BlackElo "2294"]
[Result "1-0"]
[Round "06"]
[TimeControl "180+2"]
[Date "2023.02.15"]
[WhiteClock "0:01:32"]
[BlackClock "0:00:04"]

1. e4 {[%clk 0:03:00]}  e5 {[%clk 0:02:56]} 2. Nf3 {[%clk 0:03:01]}  Nc6 {[%clk 0:02:56]} 3. Bb5 {[%clk 0:02:59]}  a6 {[%clk 0:02:55]} 4. Ba4 {[%clk 0:02:59]}  Nf6 {[%clk 0:02:55]} 5. O-O {[%clk 0:02:58]}  Nxe4 {[%clk 0:02:55]} 6. d4 {[%clk 0:02:57]}  b5 {[%clk 0:02:53]} 7. Bb3 {[%clk 0:02:57]}  d5 {[%clk 0:02:47]} 8. dxe5 {[%clk 0:02:56]}  Bc5 {[%clk 0:02:37]} 9. Qxd5 {[%clk 0:02:37]}  Qxd5 {[%clk 0:00:32]} 10. Bxd5 {[%clk 0:02:35]}  Nxf2 {[%clk 0:00:33]} 11. Bxc6+ {[%clk 0:02:27]}  Bd7 {[%clk 0:00:34]} 12. Bxd7+ {[%clk 0:02:00]}  Kxd7 {[%clk 0:00:34]} 13. Rxf2 {[%clk 0:02:01]}  Kc6 {[%clk 0:00:33]} 14. Nc3 {[%clk 0:02:00]}  Rad8 {[%clk 0:00:31]} 15. Kf1 {[%clk 0:01:59]}  b4 {[%clk 0:00:22]} 16. Ne4 {[%clk 0:01:41]}  Rd1+ {[%clk 0:00:18]} 17. Ke2 {[%clk 0:01:32]}  Bxf2 {[%clk 0:00:07]} 18. Nxf2 {[%clk 0:01:32]}  Rhd8 {[%clk 0:00:04]} 19. Nxd1 {[%clk 0:01:32]} 1-0


[Site "https://www.chess.com"]

[Event "Titled Tuesday Blitz February 14 Early 2023"]
[White "Cramling Bellon, Anna"]
[Black "Martinez, Shawn"]
[WhiteFideId "32009232"]
[BlackFideId "2039770"]
[WhiteElo "2043"]
[BlackElo "1881"]
[Result "1-0"]
[Round "06"]
[TimeControl "180+2"]
[Date "2023.02.15"]
[WhiteClock "0:00:03"]
[BlackClock "0:00:03"]

1. d4 {[%clk 0:03:00]}  Nf6 {[%clk 0:02:50]} 2. c4 {[%clk 0:02:59]}  g6 {[%clk 0:02:50]} 3. Nc3 {[%clk 0:02:59]}  d6 {[%clk 0:02:48]} 4. e4 {[%clk 0:02:59]}  Bg7 {[%clk 0:02:48]} 5. h3 {[%clk 0:03:00]}  O-O {[%clk 0:02:48]} 6. Nf3 {[%clk 0:03:00]}  Nbd7 {[%clk 0:02:46]} 7. Bg5 {[%clk 0:02:59]}  h6 {[%clk 0:02:44]} 8. Be3 {[%clk 0:02:59]}  e5 {[%clk 0:02:41]} 9. d5 {[%clk 0:02:59]}  a5 {[%clk 0:02:41]} 10. Be2 {[%clk 0:02:59]}  Nc5 {[%clk 0:02:39]} 11. Qc2 {[%clk 0:03:00]}  b6 {[%clk 0:02:38]} 12. g4 {[%clk 0:03:00]}  Ne8 {[%clk 0:02:38]} 13. O-O-O {[%clk 0:02:59]}  f5 {[%clk 0:02:34]} 14. gxf5 {[%clk 0:03:00]}  gxf5 {[%clk 0:02:34]} 15. Rdg1 {[%clk 0:02:51]}  Qf6 {[%clk 0:02:24]} 16. h4 {[%clk 0:02:17]}  fxe4 {[%clk 0:02:09]} 17. Nxe4 {[%clk 0:01:47]}  Nxe4 {[%clk 0:02:04]} 18. Ng5 {[%clk 0:00:26]}  hxg5 {[%clk 0:01:17]} 19. hxg5 {[%clk 0:00:26]}  Qg6 {[%clk 0:01:11]} 20. Bh5 {[%clk 0:00:25]}  Qf5 {[%clk 0:01:10]} 21. Bg4 {[%clk 0:00:20]}  Qg6 {[%clk 0:00:51]} 22. Bh5 {[%clk 0:00:20]}  Qf5 {[%clk 0:00:46]} 23. Bg4 {[%clk 0:00:20]}  Qxg4 {[%clk 0:00:25]} 24. Rxg4 {[%clk 0:00:19]}  Bxg4 {[%clk 0:00:26]} 25. Qxe4 {[%clk 0:00:18]}  Bf5 {[%clk 0:00:26]} 26. Qh4 {[%clk 0:00:16]}  Bg6 {[%clk 0:00:27]} 27. Qg4 {[%clk 0:00:11]}  Rf5 {[%clk 0:00:24]} 28. Rh3 {[%clk 0:00:05]}  Bf8 {[%clk 0:00:20]} 29. Rf3 {[%clk 0:00:04]}  Ng7 {[%clk 0:00:20]} 30. Rxf5 {[%clk 0:00:04]}  Bxf5 {[%clk 0:00:21]} 31. Qh4 {[%clk 0:00:03]}  a4 {[%clk 0:00:21]} 32. f3 {[%clk 0:00:01]}  Rb8 {[%clk 0:00:20]} 33. a3 {[%clk 0:00:01]}  b5 {[%clk 0:00:21]} 34. Qh6 {[%clk 0:00:01]}  bxc4 {[%clk 0:00:20]} 35. g6 {[%clk 0:00:02]}  Bxg6 {[%clk 0:00:10]} 36. Qxg6 {[%clk 0:00:03]}  Rb3 {[%clk 0:00:10]} 37. Bh6 {[%clk 0:00:02]}  Rxf3 {[%clk 0:00:10]} 38. Bxg7 {[%clk 0:00:03]}  Bxg7 {[%clk 0:00:10]} 39. Qe6+ {[%clk 0:00:03]}  Rf7 {[%clk 0:00:09]} 40. Qc8+ {[%clk 0:00:03]}  Bf8 {[%clk 0:00:09]} 41. Qg4+ {[%clk 0:00:03]}  Rg7 {[%clk 0:00:09]} 42. Qe6+ {[%clk 0:00:04]}  Kh8 {[%clk 0:00:09]} 43. Qh6+ {[%clk 0:00:03]}  Kg8 {[%clk 0:00:09]} 44. Qe6+ {[%clk 0:00:03]}  Rf7 {[%clk 0:00:09]} 45. Kc2 {[%clk 0:00:03]}  Bg7 {[%clk 0:00:09]} 46. Kc3 {[%clk 0:00:03]}  Bf8 {[%clk 0:00:03]} 47. Qg6+ {[%clk 0:00:03]}  Rg7 {[%clk 0:00:03]} 48. Qe6+ {[%clk 0:00:03]}  Kh8 {[%clk 0:00:03]} 49. Kxc4 {[%clk 0:00:03]} 1-0


[Site "https://www.chess.com"]

[Event "Titled Tuesday Blitz February 14 Early 2023"]
[White "Sabar, Ethmane Daouda"]
[Black "Weisz, Bryan"]
[WhiteFideId "19600097"]
[BlackFideId "30934133"]
[WhiteElo "2040"]
[BlackElo "1973"]
[Result "1-0"]
[Round "06"]
[TimeControl "180+2"]
[Date "2023.02.15"]
[WhiteClock "0:00:47"]
[BlackClock "0:00:16"]

1. e4 {[%clk 0:02:52]}  e5 {[%clk 0:02:55]} 2. Bc4 {[%clk 0:02:51]}  Qg5 {[%clk 0:02:24]} 3. Nf3 {[%clk 0:02:37]}  Qxg2 {[%clk 0:02:09]} 4. Rg1 {[%clk 0:02:37]}  Qh3 {[%clk 0:02:09]} 5. Bxf7+ {[%clk 0:02:18]}  Kd8 {[%clk 0:02:06]} 6. Rg3 {[%clk 0:02:00]}  Qh6 {[%clk 0:01:52]} 7. d4 {[%clk 0:02:01]}  Qb6 {[%clk 0:01:29]} 8. Bxg8 {[%clk 0:01:47]}  Rxg8 {[%clk 0:01:27]} 9. Nxe5 {[%clk 0:01:46]}  Nc6 {[%clk 0:01:17]} 10. Nc3 {[%clk 0:01:25]}  Nxe5 {[%clk 0:01:10]} 11. dxe5 {[%clk 0:01:25]}  Bc5 {[%clk 0:01:05]} 12. Bg5+ {[%clk 0:01:24]}  Ke8 {[%clk 0:01:05]} 13. Qh5+ {[%clk 0:01:03]}  g6 {[%clk 0:01:00]} 14. Qxh7 {[%clk 0:01:03]}  Rf8 {[%clk 0:00:24]} 15. O-O-O {[%clk 0:00:57]}  c6 {[%clk 0:00:16]} 16. Qxg6+ {[%clk 0:00:51]}  Rf7 {[%clk 0:00:16]} 17. Rf3 {[%clk 0:00:47]} 1-0


[Site "https://www.chess.com"]

[Event "Titled Tuesday Blitz February 14 Early 2023"]
[White "Vifleemskaia, Svetlana"]
[Black "Kiseleva, Arina"]
[WhiteFideId "4129490"]
[BlackFideId "4164989"]
[WhiteElo "1971"]
[BlackElo "1962"]
[Result "0-1"]
[Round "06"]
[TimeControl "180+2"]
[Date "2023.02.15"]
[WhiteClock "0:00:01"]
[BlackClock "0:00:14"]

1. d4 {[%clk 0:02:51]}  Nf6 {[%clk 0:02:59]} 2. c4 {[%clk 0:02:44]}  e6 {[%clk 0:02:59]} 3. Nc3 {[%clk 0:02:39]}  Bb4 {[%clk 0:02:58]} 4. e3 {[%clk 0:02:20]}  O-O {[%clk 0:02:52]} 5. Ne2 {[%clk 0:02:19]}  Re8 {[%clk 0:02:49]} 6. a3 {[%clk 0:02:15]}  Bf8 {[%clk 0:02:49]} 7. f4 {[%clk 0:02:09]}  c5 {[%clk 0:02:38]} 8. Ng3 {[%clk 0:02:05]}  d5 {[%clk 0:02:28]} 9. Be2 {[%clk 0:01:55]}  cxd4 {[%clk 0:02:20]} 10. exd4 {[%clk 0:01:51]}  dxc4 {[%clk 0:02:20]} 11. Bxc4 {[%clk 0:01:41]}  Nc6 {[%clk 0:02:01]} 12. Be3 {[%clk 0:01:38]}  a6 {[%clk 0:01:57]} 13. O-O {[%clk 0:01:36]}  b5 {[%clk 0:01:56]} 14. Ba2 {[%clk 0:01:36]}  Bb7 {[%clk 0:01:56]} 15. Bf2 {[%clk 0:01:32]}  Ne7 {[%clk 0:01:44]} 16. Re1 {[%clk 0:01:28]}  Ned5 {[%clk 0:01:40]} 17. Nxd5 {[%clk 0:01:22]}  Nxd5 {[%clk 0:01:26]} 18. Qd2 {[%clk 0:01:17]}  Qf6 {[%clk 0:01:15]} 19. Be3 {[%clk 0:01:04]}  Nxe3 {[%clk 0:01:12]} 20. Qxe3 {[%clk 0:00:58]}  Rad8 {[%clk 0:01:12]} 21. Rad1 {[%clk 0:00:56]}  Bd6 {[%clk 0:01:08]} 22. Rf1 {[%clk 0:00:55]}  Bb8 {[%clk 0:00:54]} 23. Ne4 {[%clk 0:00:48]}  Qg6 {[%clk 0:00:52]} 24. Bb1 {[%clk 0:00:37]}  f5 {[%clk 0:00:46]} 25. Ng3 {[%clk 0:00:33]}  h5 {[%clk 0:00:37]} 26. Rf2 {[%clk 0:00:28]}  h4 {[%clk 0:00:37]} 27. Ne2 {[%clk 0:00:27]}  Ba7 {[%clk 0:00:28]} 28. Ba2 {[%clk 0:00:26]}  Qf6 {[%clk 0:00:24]} 29. Qe5 {[%clk 0:00:24]}  Qxe5 {[%clk 0:00:19]} 30. fxe5 {[%clk 0:00:17]}  Bd5 {[%clk 0:00:18]} 31. Bb1 {[%clk 0:00:15]}  Bc4 {[%clk 0:00:18]} 32. Kf1 {[%clk 0:00:12]}  Bxd4 {[%clk 0:00:15]} 33. Rf4 {[%clk 0:00:03]}  Bxe5 {[%clk 0:00:14]} 34. Rxd8 {[%clk 0:00:01]}  Rxd8 {[%clk 0:00:14]} 0-1


[Site "https://www.chess.com"]

[Event "Titled Tuesday Blitz February 14 Early 2023"]
[White "Necula, Iulian"]
[Black "Levitan, Caleb Levi"]
[WhiteFideId "1232380"]
[BlackFideId "14332620"]
[WhiteElo "1851"]
[BlackElo "2129"]
[Result "1-0"]
[Round "06"]
[TimeControl "180+2"]
[Date "2023.02.15"]
[WhiteClock "0:00:42"]
[BlackClock "0:00:01"]

1. d4 {[%clk 0:03:00]}  Nf6 {[%clk 0:02:59]} 2. Nc3 {[%clk 0:03:00]}  d5 {[%clk 0:02:55]} 3. Bf4 {[%clk 0:03:01]}  a6 {[%clk 0:02:55]} 4. e3 {[%clk 0:03:00]}  c5 {[%clk 0:02:54]} 5. Nf3 {[%clk 0:02:56]}  Nc6 {[%clk 0:02:54]} 6. Ne5 {[%clk 0:02:52]}  Bf5 {[%clk 0:02:45]} 7. g4 {[%clk 0:02:47]}  Bg6 {[%clk 0:02:26]} 8. h4 {[%clk 0:02:39]}  cxd4 {[%clk 0:01:56]} 9. exd4 {[%clk 0:02:31]}  Nxe5 {[%clk 0:00:20]} 10. dxe5 {[%clk 0:02:28]}  d4 {[%clk 0:00:19]} 11. Nb1 {[%clk 0:02:11]}  Nd5 {[%clk 0:00:16]} 12. Bd2 {[%clk 0:01:59]}  h5 {[%clk 0:00:11]} 13. g5 {[%clk 0:01:56]}  e6 {[%clk 0:00:12]} 14. Bg2 {[%clk 0:01:55]}  Bc5 {[%clk 0:00:12]} 15. O-O {[%clk 0:01:54]}  O-O {[%clk 0:00:12]} 16. c4 {[%clk 0:01:51]}  dxc3 {[%clk 0:00:10]} 17. Nxc3 {[%clk 0:01:52]}  Nxc3 {[%clk 0:00:11]} 18. Bxc3 {[%clk 0:01:52]}  Qxd1 {[%clk 0:00:11]} 19. Raxd1 {[%clk 0:01:52]}  Rfd8 {[%clk 0:00:11]} 20. Bxb7 {[%clk 0:01:50]}  Rxd1 {[%clk 0:00:10]} 21. Rxd1 {[%clk 0:01:48]}  Rb8 {[%clk 0:00:09]} 22. Bxa6 {[%clk 0:01:47]}  Ra8 {[%clk 0:00:08]} 23. Bc4 {[%clk 0:01:45]}  Be4 {[%clk 0:00:08]} 24. b4 {[%clk 0:01:39]}  Bb6 {[%clk 0:00:07]} 25. Rd6 {[%clk 0:01:33]}  Bc7 {[%clk 0:00:06]} 26. Rd7 {[%clk 0:01:32]}  Rc8 {[%clk 0:00:07]} 27. Ba6 {[%clk 0:01:26]}  Ra8 {[%clk 0:00:07]} 28. b5 {[%clk 0:01:26]}  Bb6 {[%clk 0:00:06]} 29. a4 {[%clk 0:01:22]}  Rd8 {[%clk 0:00:04]} 30. Rxd8+ {[%clk 0:01:21]}  Bxd8 {[%clk 0:00:05]} 31. a5 {[%clk 0:01:21]}  Bd3 {[%clk 0:00:05]} 32. f4 {[%clk 0:01:16]}  Kf8 {[%clk 0:00:05]} 33. Kf2 {[%clk 0:01:16]}  Ke7 {[%clk 0:00:05]} 34. Ke3 {[%clk 0:01:17]}  Bf1 {[%clk 0:00:05]} 35. Bb4+ {[%clk 0:01:17]}  Kd7 {[%clk 0:00:05]} 36. Kd4 {[%clk 0:01:16]}  g6 {[%clk 0:00:05]} 37. Bd2 {[%clk 0:00:56]}  Bc7 {[%clk 0:00:02]} 38. Kc5 {[%clk 0:00:53]}  Bb8 {[%clk 0:00:02]} 39. Kb6 {[%clk 0:00:51]}  Bc7+ {[%clk 0:00:02]} 40. Ka7 {[%clk 0:00:50]}  Bd8 {[%clk 0:00:02]} 41. b6 {[%clk 0:00:50]}  Be7 {[%clk 0:00:02]} 42. Bxf1 {[%clk 0:00:49]}  Bc5 {[%clk 0:00:02]} 43. Kb7 {[%clk 0:00:47]}  Kd8 {[%clk 0:00:02]} 44. a6 {[%clk 0:00:46]}  Kd7 {[%clk 0:00:03]} 45. a7 {[%clk 0:00:46]}  f5 {[%clk 0:00:03]} 46. gxf6 {[%clk 0:00:45]}  g5 {[%clk 0:00:02]} 47. hxg5 {[%clk 0:00:43]}  h4 {[%clk 0:00:02]} 48. Bg2 {[%clk 0:00:43]}  h3 {[%clk 0:00:03]} 49. Bc6+ {[%clk 0:00:43]}  Kd8 {[%clk 0:00:01]} 50. f7 {[%clk 0:00:42]} 1-0


[Site "https://www.chess.com"]

[Event "Titled Tuesday Blitz February 14 Early 2023"]
[White "I_KID_you_not"]
[Black "Ciuffoletti, Paolo"]
[BlackFideId "807630"]
[WhiteElo "2323"]
[BlackElo "2106"]
[Result "1-0"]
[Round "06"]
[TimeControl "180+2"]
[Date "2023.02.15"]
[WhiteClock "0:00:32"]
[BlackClock "0:00:23"]

1. e4 {[%clk 0:03:00]}  c5 {[%clk 0:02:59]} 2. Nc3 {[%clk 0:03:00]}  Nc6 {[%clk 0:02:59]} 3. Bb5 {[%clk 0:03:01]}  e6 {[%clk 0:02:56]} 4. Bxc6 {[%clk 0:03:01]}  bxc6 {[%clk 0:02:55]} 5. d3 {[%clk 0:03:01]}  d6 {[%clk 0:02:54]} 6. f4 {[%clk 0:03:00]}  Nf6 {[%clk 0:02:48]} 7. Nf3 {[%clk 0:03:00]}  Be7 {[%clk 0:02:48]} 8. O-O {[%clk 0:02:56]}  O-O {[%clk 0:02:47]} 9. e5 {[%clk 0:02:56]}  Nd5 {[%clk 0:02:39]} 10. Ne4 {[%clk 0:02:55]}  f5 {[%clk 0:02:32]} 11. exd6 {[%clk 0:02:55]}  fxe4 {[%clk 0:02:05]} 12. dxe7 {[%clk 0:02:53]}  Qxe7 {[%clk 0:02:01]} 13. Ng5 {[%clk 0:02:14]}  e5 {[%clk 0:01:17]} 14. fxe5 {[%clk 0:02:02]}  Rxf1+ {[%clk 0:01:11]} 15. Qxf1 {[%clk 0:02:01]}  h6 {[%clk 0:01:03]} 16. Nxe4 {[%clk 0:02:01]}  Qxe5 {[%clk 0:01:02]} 17. Qf2 {[%clk 0:01:39]}  c4 {[%clk 0:00:48]} 18. Bd2 {[%clk 0:01:30]}  cxd3 {[%clk 0:00:43]} 19. cxd3 {[%clk 0:01:23]}  Bf5 {[%clk 0:00:37]} 20. Bc3 {[%clk 0:00:50]}  Nxc3 {[%clk 0:00:33]} 21. Nxc3 {[%clk 0:00:51]}  Bxd3 {[%clk 0:00:29]} 22. Re1 {[%clk 0:00:49]}  Qf5 {[%clk 0:00:26]} 23. Qxf5 {[%clk 0:00:48]}  Bxf5 {[%clk 0:00:25]} 24. Re7 {[%clk 0:00:49]}  Rb8 {[%clk 0:00:24]} 25. b3 {[%clk 0:00:49]}  Rd8 {[%clk 0:00:24]} 26. Rxa7 {[%clk 0:00:46]}  Rd3 {[%clk 0:00:24]} 27. Ne2 {[%clk 0:00:39]}  Be4 {[%clk 0:00:23]} 28. Kf2 {[%clk 0:00:32]}  Rd2 {[%clk 0:00:23]} 29. Ke3 {[%clk 0:00:32]} 1-0


[Site "https://www.chess.com"]

[Event "Titled Tuesday Blitz February 14 Early 2023"]
[White "Floresvillar Gonzalez, Luis Migu"]
[Black "Kornyukov, Alexey"]
[WhiteFideId "5100542"]
[BlackFideId "4150457"]
[WhiteElo "2043"]
[BlackElo "2452"]
[Result "0-1"]
[Round "06"]
[TimeControl "180+2"]
[Date "2023.02.15"]
[WhiteClock "0:00:01"]
[BlackClock "0:00:10"]

1. d4 {[%clk 0:02:48]}  d5 {[%clk 0:02:58]} 2. c3 {[%clk 0:02:48]}  Nf6 {[%clk 0:02:58]} 3. Nf3 {[%clk 0:02:48]}  Bg4 {[%clk 0:02:56]} 4. Ne5 {[%clk 0:02:46]}  e6 {[%clk 0:02:55]} 5. Nxg4 {[%clk 0:02:42]}  Nxg4 {[%clk 0:02:53]} 6. Bf4 {[%clk 0:02:38]}  Bd6 {[%clk 0:02:50]} 7. e3 {[%clk 0:02:23]}  Bxf4 {[%clk 0:02:47]} 8. exf4 {[%clk 0:02:23]}  Nf6 {[%clk 0:02:46]} 9. Nd2 {[%clk 0:02:19]}  O-O {[%clk 0:02:44]} 10. Bd3 {[%clk 0:02:17]}  c5 {[%clk 0:02:42]} 11. dxc5 {[%clk 0:02:16]}  Nc6 {[%clk 0:02:39]} 12. b4 {[%clk 0:02:15]}  d4 {[%clk 0:02:13]} 13. b5 {[%clk 0:02:11]}  dxc3 {[%clk 0:01:53]} 14. Ne4 {[%clk 0:01:55]}  Nxe4 {[%clk 0:01:44]} 15. Bxe4 {[%clk 0:01:44]}  Ne7 {[%clk 0:01:31]} 16. Qc2 {[%clk 0:01:30]}  f5 {[%clk 0:01:21]} 17. Bxb7 {[%clk 0:01:26]}  Rb8 {[%clk 0:01:12]} 18. c6 {[%clk 0:01:22]}  Qd4 {[%clk 0:00:34]} 19. O-O {[%clk 0:01:16]}  Qxf4 {[%clk 0:00:33]} 20. Qxc3 {[%clk 0:01:15]}  Nd5 {[%clk 0:00:28]} 21. Qc2 {[%clk 0:01:02]}  Qg5 {[%clk 0:00:28]} 22. c7 {[%clk 0:00:56]}  Nxc7 {[%clk 0:00:22]} 23. Qxc7 {[%clk 0:00:53]}  f4 {[%clk 0:00:22]} 24. f3 {[%clk 0:00:39]}  Qxb5 {[%clk 0:00:22]} 25. Be4 {[%clk 0:00:36]}  Rfc8 {[%clk 0:00:21]} 26. Qxa7 {[%clk 0:00:32]}  Qb2 {[%clk 0:00:20]} 27. Rab1 {[%clk 0:00:28]}  Qe5 {[%clk 0:00:20]} 28. Rxb8 {[%clk 0:00:26]}  Rxb8 {[%clk 0:00:20]} 29. Re1 {[%clk 0:00:22]}  Qd6 {[%clk 0:00:19]} 30. a4 {[%clk 0:00:18]}  Rb2 {[%clk 0:00:19]} 31. Qa8+ {[%clk 0:00:14]}  Kf7 {[%clk 0:00:19]} 32. Qc6 {[%clk 0:00:12]}  Qd4+ {[%clk 0:00:18]} 33. Kh1 {[%clk 0:00:11]}  Qf2 {[%clk 0:00:17]} 34. Rg1 {[%clk 0:00:10]}  Kf6 {[%clk 0:00:16]} 35. h3 {[%clk 0:00:08]}  Qd4 {[%clk 0:00:15]} 36. Qa6 {[%clk 0:00:06]}  Qd2 {[%clk 0:00:15]} 37. Qf1 {[%clk 0:00:05]}  Rb3 {[%clk 0:00:14]} 38. Bc6 {[%clk 0:00:04]}  e5 {[%clk 0:00:14]} 39. Bb5 {[%clk 0:00:04]}  Re3 {[%clk 0:00:14]} 40. Qb1 {[%clk 0:00:03]}  Qd6 {[%clk 0:00:14]} 41. Qxh7 {[%clk 0:00:02]}  Qe7 {[%clk 0:00:10]} 42. Qh4+ {[%clk 0:00:02]}  Kf7 {[%clk 0:00:10]} 43. Qxe7+ {[%clk 0:00:03]}  Kxe7 {[%clk 0:00:11]} 44. Rd1 {[%clk 0:00:02]}  Ra3 {[%clk 0:00:10]} 45. Kg1 {[%clk 0:00:02]}  Ra2 {[%clk 0:00:10]} 46. Re1 {[%clk 0:00:01]}  Ke6 {[%clk 0:00:10]} 0-1


[Site "https://www.chess.com"]